fUST/lending_fUST_20260407
["ID","MTS","AMOUNT","RATE_DAILY","PERIOD"]
[419952949,1775543248536,538.61,0.00032876,120]
[419952950,1775543248630,900.19,0.00032876,120]
[419952951,1775543248809,538.61,0.00032876,120]
[419952952,1775543248859,900.19,0.00032876,120]
[419952953,1775543249061,538.61,0.00032876,120]
[419952954,1775543249111,900.19,0.00032876,120]
[419952955,1775543249301,538.69755825,0.00032876,120]
[419952956,1775543249369,900.19,0.00032876,120]
[419952957,1775543249660,900.19,0.00032876,120]
[419952958,1775543249954,900.19,0.00032876,120]
[419952959,1775543250212,771.5316901,0.00032876,120]
[419952989,1775543431753,-1836.31865706,0.00013023,2]
[419952990,1775543431765,-3163.68134294,0.00013023,2]
[419952991,1775543431775,-1197.79592972,0.00013155,2]
[419952992,1775543431786,-2.20407028,0.00013155,2]
[419952993,1775543431796,-607.0,0.00013156,2]
[419952994,1775543431806,-301.40398444,0.00013424,2]
[419952995,1775543431815,-300.0,0.0001356,2]
[419952997,1775543431824,-300.0,0.0001356,2]
[419952999,1775543431833,-300.0,0.0001356,2]
[419953000,1775543431843,-1052.50397904,0.00013561,2]
[419953003,1775543437967,-5453.34434588,0.00013561,2]
[419953004,1775543437978,-452.10597665,0.00013561,2]
[419953005,1775543437988,-6505.84832492,0.00013562,2]
[419953006,1775543437998,-1272.320123,0.00013699,2]
[419953007,1775543438008,-217.90670372,0.00013699,2]
[419953008,1775543438017,-1000.0,0.00013699,2]
[419953009,1775543438027,-6505.84832492,0.00013699,2]
[419953010,1775543438036,-300.0,0.00013832,2]
[419953011,1775543438046,-300.0,0.00013832,2]
[419953012,1775543438056,-300.0,0.00013832,2]
[419953013,1775543438066,-300.0,0.00013832,2]
[419953014,1775543438077,-300.0,0.00013832,2]
[419953015,1775543438086,-300.0,0.00013832,2]
[419953016,1775543438096,-300.0,0.00013832,2]
[419953018,1775543438105,-300.0,0.00013832,2]
[419953019,1775543438115,-300.0,0.00013832,2]
[419953021,1775543438125,-300.0,0.00013832,2]
[419953023,1775543438134,-300.0,0.00013832,2]
[419953024,1775543438143,-300.0,0.00013832,2]
[419953026,1775543438153,-300.0,0.00013832,2]
[419953027,1775543438163,-300.0,0.00013832,2]
[419953029,1775543438174,-300.0,0.00013832,2]
[419953030,1775543438183,-6505.84832492,0.00013832,2]
[419953032,1775543438193,-513.77725196,0.00014041,2]
[419953034,1775543438202,-1680.0,0.00014471,2]
[419953036,1775543438212,-500.0,0.00014667,2]
[419953038,1775543438222,-420.0,0.00014862,2]
[419953040,1775543438232,-500.0,0.000149,2]
[419953041,1775543438241,-1000.0,0.00015448,2]
[419953043,1775543438251,-219.4636553,0.0001586,2]
[419953044,1775543438260,-42925.0146494,0.0001586,2]
[419953045,1775543438269,-2351.0,0.00015918,2]
[419953047,1775543438279,-1500.0,0.00015996,2]
[419953048,1775543438288,-587.0,0.0001629,2]
[419953049,1775543438297,-2000.0,0.00016544,2]
[419953050,1775543438307,-204.68,0.00016959,2]
[419953051,1775543438316,-2500.0,0.00017092,2]
[419953052,1775543438325,-250.0,0.00017382,2]
[419953053,1775543438334,-820.96293367,0.00017486,2]
[419953054,1775543438343,-3292.0,0.00017509,2]
[419953055,1775543438353,-3000.0,0.0001764,2]
[419953056,1775543438361,-153.58169778,0.00017776,2]
[419953057,1775543438371,-823.0,0.00017854,2]
[419953058,1775543438380,-2683.6137343,0.00018188,2]
[419953059,1775543438389,-820.96293363,0.00018569,2]
[419953060,1775543438398,-222.99862805,0.00018682,2]
[419953061,1775543438408,-209.52611106,0.00018682,2]
[419953062,1775543438417,-435.87324877,0.00018782,2]
[419953063,1775543438427,-4004.0,0.0001926,2]
[419953064,1775543438437,-1152.0,0.00019569,2]
[419953065,1775543438447,-820.96293363,0.00019652,2]
[419953066,1775543438456,-180.09004502,0.0001986,2]
[419953067,1775543438466,-310.07,0.0002,2]
[419953068,1775543438475,-1195.76,0.0002,2]
[419953069,1775543438485,-1800.0,0.0002,2]
[419953070,1775543438495,-500.0,0.0002,2]
[419953071,1775543438505,-171.50953632,0.0002,2]
[419953072,1775543438515,-359.7733,0.0002,2]
[419953073,1775543438524,-1438.35,0.0002004,2]
[419953074,1775543438534,-336.36,0.00020161,3]
[419953075,1775543438544,-168.18,0.00020161,3]
[419953076,1775543438553,-504.56,0.00020161,3]
[419953077,1775543438563,-582.664468,0.0002017,2]
[419953078,1775543438572,-582.664468,0.0002017,2]
[419953079,1775543438587,-582.664468,0.0002017,2]
[419953080,1775543438598,-582.664468,0.0002017,2]
[419953081,1775543438608,-582.664468,0.0002017,2]
[419953082,1775543438619,-582.664468,0.0002017,2]
[419953083,1775543438629,-582.664468,0.0002017,2]
[419953084,1775543438639,-582.664468,0.0002017,2]
[419953085,1775543438648,-151.784139,0.00020171,2]
[419953086,1775543438659,-151.0,0.00020172,2]
[419953087,1775543438669,-250.78233,0.00020172,2]
[419953088,1775543438678,-5031.57639401,0.00020172,2]
[419953089,1775543438689,-5000.0,0.00020172,2]
[419953090,1775543438699,-5000.0,0.00020172,2]
[419953091,1775543438709,-5000.0,0.00020172,2]
[419953092,1775543438719,-5000.0,0.00020172,2]
[419953093,1775543438728,-500.0,0.00020173,2]
[419953094,1775543438738,-500.0,0.00020173,2]
[419953095,1775543438749,-1369.11,0.00020302,2]
[419953096,1775543438758,-1272.320123,0.00020548,2]
[419953097,1775543438768,-582.664468,0.00020559,2]
[419953098,1775543438778,-582.664468,0.00020559,2]
[419953099,1775543438787,-582.664468,0.00020559,2]
[419953100,1775543438797,-582.664468,0.00020559,2]
[419953101,1775543438807,-151.0,0.00020559,2]
[419953102,1775543438817,-151.0,0.00020559,2]
[419953103,1775543438826,-445.202766,0.00020559,2]
[419953104,1775543438836,-162.380719,0.00020559,2]
[419953105,1775543438846,-168.3888056,0.00020559,2]
[419953106,1775543438855,-151.0,0.00020559,2]
[419953107,1775543438864,-151.0,0.00020559,2]
[419953108,1775543438874,-151.0,0.00020559,2]
[419953109,1775543438885,-162.380719,0.00020559,2]
[419953110,1775543439206,-151.0,0.00020559,2]
[419953111,1775543439216,-168.3888056,0.00020559,2]
[419953112,1775543439225,-151.0,0.00020559,2]
[419953113,1775543439235,-174.61919141,0.00020559,2]
[419953114,1775543439244,-151.0,0.00020559,2]
[419953115,1775543439254,-181.08010149,0.00020559,2]
[419953116,1775543439263,-187.78006525,0.00020559,2]
[419953117,1775543439272,-151.0,0.00020559,2]
[419953118,1775543439282,-537.6845,0.00020559,2]
[419953119,1775543439291,-194.72792766,0.00020559,2]
[419953120,1775543439301,-151.0,0.00020559,2]
[419953121,1775543439310,-201.93286099,0.00020559,2]
[419953122,1775543439319,-151.0,0.00020559,2]
[419953123,1775543439328,-209.40437684,0.00020559,2]
[419953124,1775543439339,-151.0,0.00020559,2]
[419953125,1775543439348,-217.15233878,0.00020559,2]
[419953126,1775543439358,-151.0,0.00020559,2]
[419953127,1775543439367,-225.18697532,0.00020559,2]
[419953128,1775543439376,-156.587,0.00020559,2]
[419953129,1775543439389,-151.0,0.00020559,2]
[419953130,1775543439399,-233.51889341,0.00020559,2]
[419953131,1775543439409,-151.0,0.00020559,2]
[419953132,1775543439418,-388.64276015,0.00020559,2]
[419953133,1775543439428,-2150.738,0.00020559,2]
[419953134,1775543439438,-537.6845,0.00020559,2]
[419953135,1775543439448,-557.5788265,0.00020614,2]
[419953136,1775543439457,-151.0,0.00020618,2]
[419953137,1775543439466,-215.182959,0.00020618,2]
[419953138,1775543439476,-215.182959,0.00020618,2]
[419953139,1775543439486,-215.182959,0.00020618,2]
[419953140,1775543439495,-215.182959,0.00020618,2]
[419953141,1775543439505,-151.0,0.00020618,2]
[419953142,1775543439515,-151.0,0.00020618,2]
[419953143,1775543439524,-151.0,0.00020619,2]
[419953144,1775543439534,-215.182959,0.00020619,2]
[419953145,1775543439543,-215.182959,0.00020619,2]
[419953146,1775543439552,-215.182959,0.00020619,2]
[419953147,1775543439561,-215.182959,0.00020619,2]
[419953148,1775543439570,-500.0,0.00020619,2]
[419953149,1775543439579,-500.0,0.00020619,2]
[419953150,1775543439588,-500.0,0.00020619,2]
[419953151,1775543439598,-500.0,0.00020619,2]
[419953152,1775543439607,-500.0,0.00020619,2]
[419953153,1775543439616,-500.0,0.00020619,2]
[419953154,1775543439625,-500.0,0.00020619,2]
[419953155,1775543439634,-500.0,0.00020619,2]
[419953156,1775543439643,-500.0,0.00020619,2]
[419953157,1775543439653,-500.0,0.00020619,2]
[419953158,1775543439662,-500.0,0.00020619,2]
[419953159,1775543439671,-500.0,0.00020619,2]
[419953160,1775543439680,-500.0,0.00020619,2]
[419953161,1775543439689,-500.0,0.00020619,2]
[419953162,1775543439698,-564.23015566,0.00020619,2]
[419953163,1775543439708,-641.13,0.00020619,2]
[419953164,1775543439717,-641.13,0.00020619,2]
[419953165,1775543439727,-641.13,0.00020619,2]
[419953166,1775543439736,-641.13,0.00020619,2]
[419953167,1775543439745,-641.13,0.00020619,2]
[419953168,1775543439754,-641.13,0.00020619,2]
[419953169,1775543439763,-641.13,0.00020619,2]
[419953171,1775543439772,-641.13,0.00020619,2]
[419953173,1775543439781,-641.13,0.00020619,2]
[419953174,1775543439790,-641.13,0.00020619,2]
[419953176,1775543439799,-827.42,0.00020619,2]
[419953177,1775543439807,-578.20924308,0.00020669,2]
[419953178,1775543439816,-500.0,0.00020673,2]
[419953179,1775543439826,-1000.0,0.00020721,2]
[419953180,1775543439835,-1000.0,0.00020721,2]
[419953181,1775543439844,-599.60298507,0.00020724,2]
[419953182,1775543439852,-820.96293363,0.00020734,2]
[419953183,1775543439862,-3096.5142986,0.00020753,2]
[419953184,1775543439871,-38510.875127,0.00020753,2]
[419953185,1775543439879,-4229.5861089,0.00020753,2]
[419953186,1775543439889,-3277.09314,0.00020753,2]
[419953187,1775543439898,-215.182959,0.00020753,2]
[419953188,1775543439907,-215.182959,0.00020753,2]
[419953189,1775543439916,-215.182959,0.00020753,2]
[419953190,1775543439925,-215.182959,0.00020753,2]
[419953192,1775543439934,-151.0,0.00020753,2]
[419953193,1775543439943,-2106.36706,0.00020753,2]
[419953194,1775543439951,-582.664468,0.00020753,2]
[419953195,1775543439960,-582.664468,0.00020753,2]
[419953196,1775543439969,-582.664468,0.00020753,2]
[419953197,1775543439978,-582.664468,0.00020753,2]
[419953198,1775543439986,-621.78829552,0.00020779,2]
[419953199,1775543439996,-644.79446246,0.00020834,2]
[419953200,1775543440005,-836.71,0.00020846,2]
[419953201,1775543440014,-668.65185757,0.00020889,2]
[419953202,1775543440023,-163.05443987,0.000209,2]
[419953203,1775543440031,-215.182959,0.00020917,2]
[419953204,1775543440040,-215.182959,0.00020917,2]
[419953205,1775543440049,-215.182959,0.00020917,2]
[419953206,1775543440058,-215.182959,0.00020917,2]
[419953207,1775543440067,-693.3919763,0.00020944,2]
[419953208,1775543440075,-500.0,0.00020973,2]
[419953209,1775543440084,-719.04747942,0.00020999,2]
[419953210,1775543440094,-4785.0,0.00021,2]
[419953211,1775543440103,-600.0,0.0002103,2]
[419953212,1775543440112,-745.65223616,0.00021054,2]
[419953213,1775543440121,-57855.6531714,0.0002106,2]
[419953214,1775543440130,-215.182959,0.0002106,2]
[419953215,1775543440139,-215.182959,0.0002106,2]
[419953216,1775543440147,-215.182959,0.0002106,2]
[419953217,1775543440157,-215.18295,0.0002106,2]
[419953218,1775543440166,-151.0,0.0002106,2]
[419953219,1775543440177,-582.664468,0.0002106,2]
[419953220,1775543440187,-582.664468,0.0002106,2]
[419953221,1775543440197,-582.664468,0.0002106,2]
[419953222,1775543440206,-582.664467,0.0002106,2]
[419953223,1775543440216,-500.0,0.00021073,2]
[419953224,1775543440225,-1567.26,0.00021094,2]
[419953225,1775543440235,-151.0,0.00021107,2]
[419953226,1775543440245,-550.45400495,0.00021107,2]
[419953227,1775543440254,-168.3888056,0.00021107,2]
[419953228,1775543440264,-557.5788265,0.00021107,2]
[419953229,1775543440274,-2230.315306,0.00021107,2]
[419953230,1775543440284,-773.2413689,0.00021109,2]
[419953231,1775543440294,-801.85129955,0.00021164,2]
[419953232,1775543440303,-831.51979763,0.00021219,2]
[419953233,1775543440312,-440.0,0.00021243,2]
[419953234,1775543440321,-184.0,0.00021243,2]
[419953235,1775543440331,-250.0,0.0002126,6]
[419953236,1775543440340,-1500.0,0.00021268,2]
[419953237,1775543440350,-1500.0,0.00021268,2]
[419953238,1775543440359,-862.28603014,0.00021274,2]
[419953239,1775543440369,-6505.84832492,0.00021287,30]
[419953240,1775543440378,-894.19061326,0.00021329,2]
[419953241,1775543440387,-5888.0,0.00021351,2]
[419953242,1775543440397,-152.0,0.00021373,2]
[419953243,1775543440407,-1613.0,0.00021449,2]
[419953244,1775543440417,-500.0,0.00021521,2]
[419953245,1775543440426,-672.72,0.00021531,3]
[419953246,1775543440435,-336.36,0.00021531,3]
[419953247,1775543440445,-2407.15,0.00021555,2]
[419953248,1775543440455,-1400.0,0.00021556,2]
[419953249,1775543440465,-1000.0,0.00021621,2]
[419953250,1775543440475,-151.0,0.00021655,2]
[419953251,1775543440484,-174.61919141,0.00021655,2]
[419953252,1775543440494,-578.20924308,0.00021655,2]
[419953253,1775543440503,-2312.83697232,0.00021655,2]
[419953254,1775543440514,-500.0,0.00021773,2]
[419953255,1775543440524,-25869.0,0.000218,2]
[419953256,1775543440534,-50000.0,0.000218,2]
[419953257,1775543440544,-897.51800232,0.00021816,2]
[419953258,1775543440554,-2000.0,0.00021816,2]
[419953259,1775543440564,-820.96293363,0.00021817,2]
[419953260,1775543440574,-50000.0,0.000219,2]
[419953261,1775543440584,-205.75,0.00021917,2]
[419953262,1775543440594,-151.0,0.00021918,2]
[419953263,1775543440604,-151.0,0.00021918,2]
[419953264,1775543440614,-151.0,0.00021918,2]
[419953265,1775543440623,-151.0,0.00021918,2]
[419953266,1775543440634,-151.0,0.00021918,2]
[419953267,1775543440643,-160.278844,0.00021918,2]
[419953268,1775543440652,-195.884132,0.00021918,2]
[419953269,1775543440662,-195.884132,0.00021918,2]
[419953270,1775543440672,-195.884132,0.00021918,2]
[419953271,1775543440682,-195.884132,0.00021918,2]
[419953272,1775543440692,-195.884132,0.00021918,2]
[419953273,1775543440702,-195.884132,0.00021918,2]
[419953274,1775543440711,-195.884132,0.00021918,2]
[419953275,1775543440722,-195.884132,0.00021918,2]
[419953276,1775543440732,-195.884132,0.00021918,2]
[419953278,1775543440741,-195.884132,0.00021918,2]
[419953279,1775543440750,-195.884132,0.00021918,2]
[419953280,1775543440760,-195.884132,0.00021918,2]
[419953281,1775543440770,-195.884132,0.00021918,2]
[419953282,1775543440780,-195.884132,0.00021918,2]
[419953283,1775543440790,-195.884132,0.00021918,2]
[419953284,1775543440800,-195.884132,0.00021918,2]
[419953285,1775543440811,-195.884132,0.00021918,2]
[419953286,1775543440820,-195.884132,0.00021918,2]
[419953287,1775543440831,-195.884132,0.00021918,2]
[419953288,1775543440841,-195.884142,0.00021918,2]
[419953289,1775543440850,-151.0,0.00021918,2]
[419953290,1775543440859,-151.0,0.00021918,2]
[419953291,1775543440870,-151.0,0.00021918,2]
[419953292,1775543440879,-151.0,0.00021918,2]
[419953293,1775543440889,-151.389158,0.00021918,2]
[419953294,1775543440899,-151.0,0.00021918,2]
[419953295,1775543440909,-151.0,0.00021918,2]
[419953296,1775543440918,-151.0,0.00021918,2]
[419953297,1775543440928,-151.0,0.00021918,2]
[419953298,1775543440939,-151.0,0.00021918,2]
[419953299,1775543440949,-151.0,0.00021918,2]
[419953300,1775543440958,-151.0,0.00021918,2]
[419953301,1775543440967,-151.0,0.00021918,2]
[419953302,1775543440977,-151.0,0.00021918,2]
[419953303,1775543440987,-251.418428,0.00021918,2]
[419953304,1775543440997,-151.0,0.00021918,2]
[419953305,1775543441007,-4890.172699,0.00021918,2]
[419953306,1775543441017,-151.0,0.00021918,2]
[419953307,1775543441027,-4890.172699,0.00021918,2]
[419953308,1775543441037,-151.0,0.00021918,2]
[419953309,1775543441046,-4890.172699,0.00021918,2]
[419953310,1775543441056,-151.0,0.00021918,2]
[419953311,1775543441066,-4890.172699,0.00021918,2]
[419953312,1775543441076,-4890.172699,0.00021918,2]
[419953313,1775543441084,-244.682659,0.00021918,2]
[419953314,1775543441094,-4890.172699,0.00021918,2]
[419953315,1775543441103,-4890.172699,0.00021918,2]
[419953316,1775543441114,-4890.172699,0.00021918,2]
[419953317,1775543441123,-4890.172699,0.00021918,2]
[419953318,1775543441133,-4890.172699,0.00021918,2]
[419953319,1775543441143,-4890.172699,0.00021918,2]
[419953320,1775543441152,-4890.172699,0.00021918,2]
[419953321,1775543441162,-4890.172699,0.00021918,2]
[419953322,1775543441172,-4890.172699,0.00021918,2]
[419953323,1775543441183,-4890.172699,0.00021918,2]
[419953324,1775543441193,-4890.172699,0.00021918,2]
[419953325,1775543441202,-4890.172699,0.00021918,2]
[419953326,1775543441212,-4890.172699,0.00021918,2]
[419953327,1775543441222,-4890.172699,0.00021918,2]
[419953328,1775543441232,-4890.1726936,0.00021918,2]
[419953329,1775543441241,-214.236296,0.00021918,2]
[419953330,1775543441251,-214.236296,0.00021918,2]
[419953331,1775543441262,-214.236296,0.00021918,2]
[419953332,1775543441271,-214.236296,0.00021918,2]
[419953333,1775543441280,-214.236296,0.00021918,2]
[419953334,1775543441290,-214.236296,0.00021918,2]
[419953335,1775543441300,-214.236296,0.00021918,2]
[419953336,1775543441310,-214.236296,0.00021918,2]
[419953337,1775543441320,-214.236296,0.00021918,2]
[419953338,1775543441330,-214.236296,0.00021918,2]
[419953339,1775543441339,-214.236296,0.00021918,2]
[419953340,1775543441349,-214.236296,0.00021918,2]
[419953341,1775543441358,-214.236296,0.00021918,2]
[419953342,1775543441368,-214.236296,0.00021918,2]
[419953343,1775543441378,-214.236296,0.00021918,2]
[419953344,1775543441387,-214.236296,0.00021918,2]
[419953345,1775543441397,-214.236296,0.00021918,2]
[419953346,1775543441407,-214.236296,0.00021918,2]
[419953347,1775543441417,-214.236296,0.00021918,2]
[419953348,1775543441426,-214.236292,0.00021918,2]
[419953349,1775543441436,-151.0,0.00021918,2]
[419953350,1775543441446,-151.435,0.00021918,2]
[419953351,1775543441455,-151.0,0.00021918,2]
[419953352,1775543441465,-151.0,0.00021918,2]
[419953353,1775543441474,-194.0,0.00021918,2]
[419953354,1775543441483,-151.0,0.00021918,2]
[419953355,1775543441493,-151.0,0.00021918,2]
[419953356,1775543441503,-151.00001,0.00021918,2]
[419953357,1775543441512,-259.694282,0.00021918,2]
[419953358,1775543441522,-259.694282,0.00021918,2]
[419953359,1775543441532,-259.694282,0.00021918,2]
[419953360,1775543441542,-259.694282,0.00021918,2]
[419953361,1775543441551,-259.694282,0.00021918,2]
[419953362,1775543441561,-259.694282,0.00021918,2]
[419953363,1775543441571,-259.694282,0.00021918,2]
[419953364,1775543441580,-259.694282,0.00021918,2]
[419953365,1775543441590,-259.694282,0.00021918,2]
[419953366,1775543441600,-259.694282,0.00021918,2]
[419953367,1775543441611,-259.694282,0.00021918,2]
[419953368,1775543441622,-259.694282,0.00021918,2]
[419953369,1775543441632,-259.694282,0.00021918,2]
[419953370,1775543441642,-259.694282,0.00021918,2]
[419953371,1775543441653,-259.694282,0.00021918,2]
[419953372,1775543441663,-259.694282,0.00021918,2]
[419953373,1775543441672,-259.694282,0.00021918,2]
[419953374,1775543441682,-259.694282,0.00021918,2]
[419953375,1775543441692,-259.694282,0.00021918,2]
[419953376,1775543441702,-259.694286,0.00021918,2]
[419953377,1775543441712,-151.0,0.00021918,2]
[419953378,1775543441721,-151.0,0.00021918,2]
[419953379,1775543441731,-151.0,0.00021918,2]
[419953380,1775543441742,-288.680488,0.00021918,2]
[419953381,1775543441752,-151.0,0.00021918,2]
[419953382,1775543441762,-151.0,0.00021918,2]
[419953383,1775543441772,-151.0,0.00021918,2]
[419953384,1775543441781,-151.0,0.00021918,2]
[419953385,1775543441791,-151.0,0.00021918,2]
[419953386,1775543441800,-292.293154,0.00021918,2]
[419953387,1775543441810,-498.756988,0.00021918,2]
[419953388,1775543441820,-498.756988,0.00021918,2]
[419953389,1775543441830,-498.756988,0.00021918,2]
[419953390,1775543441840,-498.756988,0.00021918,2]
[419953391,1775543441850,-498.756988,0.00021918,2]
[419953392,1775543441860,-1032.082807,0.00021918,2]
[419953393,1775543441870,-498.756988,0.00021918,2]
[419953394,1775543441880,-1032.082807,0.00021918,2]
[419953395,1775543441889,-498.756988,0.00021918,2]
[419953396,1775543441899,-1032.082807,0.00021918,2]
[419953397,1775543441909,-498.756988,0.00021918,2]
[419953398,1775543441919,-1032.082807,0.00021918,2]
[419953399,1775543441929,-498.756988,0.00021918,2]
[419953400,1775543441938,-1032.082807,0.00021918,2]
[419953401,1775543441948,-498.756988,0.00021918,2]
[419953402,1775543441957,-1032.082807,0.00021918,2]
[419953403,1775543441966,-498.756988,0.00021918,2]
[419953404,1775543441976,-1032.082807,0.00021918,2]
[419953405,1775543441985,-498.756988,0.00021918,2]
[419953406,1775543441994,-1032.082807,0.00021918,2]
[419953407,1775543442004,-498.756988,0.00021918,2]
[419953408,1775543442014,-1032.082807,0.00021918,2]
[419953409,1775543442025,-498.756988,0.00021918,2]
[419953410,1775543442034,-1032.082807,0.00021918,2]
[419953411,1775543442044,-498.756988,0.00021918,2]
[419953412,1775543442054,-1032.082807,0.00021918,2]
[419953413,1775543442064,-498.756988,0.00021918,2]
[419953414,1775543442073,-498.756988,0.00021918,2]
[419953415,1775543442082,-1032.082807,0.00021918,2]
[419953416,1775543442092,-498.756988,0.00021918,2]
[419953417,1775543442101,-1032.082807,0.00021918,2]
[419953418,1775543442110,-498.756988,0.00021918,2]
[419953419,1775543442119,-1032.082807,0.00021918,2]
[419953420,1775543442129,-498.756992,0.00021918,2]
[419953421,1775543442138,-1032.082807,0.00021918,2]
[419953422,1775543442148,-1032.082807,0.00021918,2]
[419953423,1775543442159,-1032.082807,0.00021918,2]
[419953424,1775543442168,-4755.506066,0.00021918,2]
[419953425,1775543442178,-1032.082807,0.00021918,2]
[419953426,1775543442187,-4755.506066,0.00021918,2]
[419953427,1775543442196,-1032.082807,0.00021918,2]
[419953428,1775543442206,-4755.506066,0.00021918,2]
[419953429,1775543442215,-1032.082808,0.00021918,2]
[419953430,1775543442224,-4755.506066,0.00021918,2]
[419953431,1775543442234,-151.0,0.00021918,2]
[419953432,1775543442244,-4755.506066,0.00021918,2]
[419953433,1775543442254,-151.0,0.00021918,2]
[419953434,1775543442263,-4755.506066,0.00021918,2]
[419953435,1775543442273,-151.0,0.00021918,2]
[419953437,1775543442282,-4755.506066,0.00021918,2]
[419953439,1775543442291,-239.000916,0.00021918,2]
[419953440,1775543442300,-4755.506066,0.00021918,2]
[419953441,1775543442310,-4755.506066,0.00021918,2]
[419953442,1775543442319,-4755.506066,0.00021918,2]
[419953443,1775543442328,-4755.506066,0.00021918,2]
[419953444,1775543442337,-4755.506066,0.00021918,2]
[419953445,1775543442347,-4755.506066,0.00021918,2]
[419953446,1775543442356,-4755.506066,0.00021918,2]
[419953447,1775543442366,-4755.506066,0.00021918,2]
[419953448,1775543442376,-4755.506066,0.00021918,2]
[419953449,1775543442385,-4755.506066,0.00021918,2]
[419953450,1775543442395,-4755.506066,0.00021918,2]
[419953451,1775543442404,-4755.506066,0.00021918,2]
[419953452,1775543442413,-4755.506075,0.00021918,2]
[419953453,1775543442423,-151.0,0.00021918,2]
[419953454,1775543442432,-151.0,0.00021918,2]
[419953456,1775543442442,-151.0,0.00021918,2]
[419953457,1775543442452,-151.0,0.00021918,2]
[419953458,1775543442461,-151.0,0.00021918,2]
[419953459,1775543442470,-189.257865,0.00021918,2]
[419953460,1775543442479,-278.553766,0.00021918,2]
[419953461,1775543442488,-151.0,0.00021918,2]
[419953462,1775543442497,-151.0,0.00021918,2]
[419953463,1775543442505,-151.0,0.00021918,2]
[419953464,1775543442515,-151.0,0.00021918,2]
[419953465,1775543442524,-151.0,0.00021918,2]
[419953466,1775543442533,-156.735163,0.00021918,2]
[419953467,1775543442542,-1364.791473,0.00021918,2]
[419953468,1775543442551,-1364.791473,0.00021918,2]
[419953469,1775543442560,-1364.791473,0.00021918,2]
[419953470,1775543442570,-1364.791473,0.00021918,2]
[419953471,1775543442579,-1364.791473,0.00021918,2]
[419953472,1775543442588,-1364.791473,0.00021918,2]
[419953473,1775543442597,-1364.791473,0.00021918,2]
[419953475,1775543442606,-1364.791473,0.00021918,2]
[419953477,1775543442615,-1364.791473,0.00021918,2]
[419953479,1775543442624,-1364.791473,0.00021918,2]
[419953481,1775543442635,-1364.791473,0.00021918,2]
[419953482,1775543442644,-1364.791473,0.00021918,2]
[419953483,1775543442654,-1364.791473,0.00021918,2]
[419953485,1775543442664,-1364.791473,0.00021918,2]
[419953487,1775543442674,-1364.791473,0.00021918,2]
[419953489,1775543442683,-1364.791473,0.00021918,2]
[419953491,1775543442693,-1364.791473,0.00021918,2]
[419953492,1775543442702,-1364.791473,0.00021918,2]
[419953493,1775543442712,-1364.791473,0.00021918,2]
[419953494,1775543442722,-1364.791477,0.00021918,2]
[419953495,1775543442731,-1333.798038,0.00021918,2]
[419953496,1775543442741,-1333.798038,0.00021918,2]
[419953497,1775543442751,-1333.798038,0.00021918,2]
[419953498,1775543442761,-1333.798038,0.00021918,2]
[419953499,1775543442771,-1333.798038,0.00021918,2]
[419953500,1775543442780,-1333.798038,0.00021918,2]
[419953501,1775543442790,-1333.798038,0.00021918,2]
[419953502,1775543442799,-1333.798038,0.00021918,2]
[419953503,1775543442808,-1333.798038,0.00021918,2]
[419953504,1775543442818,-1333.798038,0.00021918,2]
[419953505,1775543442828,-1333.798038,0.00021918,2]
[419953506,1775543442838,-1333.798038,0.00021918,2]
[419953507,1775543442848,-1333.798038,0.00021918,2]
[419953508,1775543442858,-1333.798038,0.00021918,2]
[419953509,1775543442867,-1333.798038,0.00021918,2]